Cogmind - Beta 16.1 @@@ ROGUE MODE // 2026.03.22 @ 14:11:45 Player: Elxavo Result: Destroyed by D-53 Grenadier with Mini Grenade Launcher Performance ------------- Evolutions (0) 0 Regions Visited (4) 800 Robots Destroyed (14) 70 Value Destroyed (218) 218 Prototype IDs (0) 0 Alien Tech Used (0) 0 Bonus (0) 0 TOTAL SCORE: 1088 Bonus ------- None Cogmind --------- Core Integrity 0/250 Matter 300/300 Energy 100/100 System Corruption 0% Temperature Cool (0) Movement Core (700) Ox13 Location -9/Mines Parts ------- > --- POWER (1) -------- (None) > --- PROPULSION (2) --- (None) > --- UTILITY (2) ------ High-capacity Storage Unit Salvage Targeting Computer > --- WEAPON (2) ------- (None) > --- INVENTORY (20) --- Light Ion Engine Light Treads Light Treads Large Battery (200) Makeshift Transmission Jammer Advanced Beam Cannon Light Assault Rifle Light Assault Rifle Mini Grenade Launcher Peak State ------------ > --- POWER ------------ Ion Engine > --- PROPULSION ------- Aluminum Leg Aluminum Leg > --- UTILITY ---------- Small Storage Unit Improved Terrain Scanner > --- WEAPON ----------- Light Assault Rifle Light Assault Rifle > --- INVENTORY -------- Ion Engine Light Ion Engine Light Treads Light Treads Advanced Beam Cannon Light Assault Rifle Mini Grenade Launcher [Rating: 10] Favorites ----------- Power Ion Engine Engine Ion Engine Propulsion Aluminum Leg Leg Aluminum Leg Utility Salvage Targeting Computer Device Improved Terrain Scanner Storage Small Storage Unit Processor Salvage Targeting Computer Weapon Light Assault Rifle Ballistic Gun Light Assault Rifle Build | -11 -10 -10 -10 -9 ------- Run | Yrd Mat Min Exi Min Slots Evolved . | . . . . . Power . | . . . . . Propulsion . | . . . . . Utility . | . . . . . Weapon . | . . . . . Parts Attached 14 | 7 3 3 1 . Power 2 | 1 1 . . . Engine 2 | 1 1 . . . Core . | . . . . . Reactor . | . . . . . Propulsion 4 | 2 2 . . . Treads . | . . . . . Leg 4 | 2 2 . . . Wheel . | . . . . . Hover . | . . . . . Flight . | . . . . . Utility 4 | 2 . 1 1 . Device 1 | 1 . . . . Storage 2 | 1 . . 1 . Processor 1 | . . 1 . . Hackware . | . . . . . Protection . | . . . . . Artifact . | . . . . . Weapon 4 | 2 . 2 . . Energy Gun . | . . . . . Energy Cannon . | . . . . . Ballistic Gun 4 | 2 . 2 . . Ballistic Cannon . | . . . . . Launcher . | . . . . . Special Weapon . | . . . . . Impact Weapon . | . . . . . Slashing Weapon . | . . . . . Piercing Weapon . | . . . . . Special Melee Weapon . | . . . . . Unidentified Prototypes . | . . . . . Parts Lost 7 | . . 2 . 5 Power 1 | . . . . 1 Propulsion 2 | . . . . 2 Utility 1 | . . 1 . . Weapon 3 | . . 1 . 2 Highest Loss Streak 5 | . . 2 . 5 To Critical Strikes . | . . . . . Average Backups 8 | 4 7 7 8 9 Power 1 | 1 2 2 1 1 Propulsion 2 | 2 2 2 2 2 Utility 1 | . . . 1 2 Weapon 3 | 1 2 2 4 4 Tool/Special . | . . . . . Unused Backups 12 | . 2 . 1 9 Power 2 | . . . 1 1 Propulsion 4 | . 2 . . 2 Utility 2 | . . . . 2 Weapon 4 | . . . . 4 Tool/Special . | . . . . . Average Slot Usage (%) 99 | . 100 94 100 82 Engine 13 | . 14 14 14 10 Leg 27 | . 28 28 28 21 Device 3 | . 14 5 . . Storage 14 | . 14 14 14 14 Processor 10 | . . 6 14 14 Ballistic Gun 27 | . 28 24 28 21 Peak Build Rating 10 | 9 10 10 9 9 Average Rating 8 | 5 9 8 9 7 On Entrance 7 | . 9 10 9 9 Avg Prop Armor Cover (%) . | . . . . . Naked Turns . | . . . . . Heaviest Build 47 | 13 13 13 47 47 Greatest Support 20 | 20 20 20 20 20 Greatest Overweight (x) 13 | . . . 2 13 Average Overweight (x) . | . . . 1 3 Largest Inventory Capacity 20 | 8 8 8 20 20 Average Capacity 13 | 7 8 8 16 20 Most Carried 9 | 7 8 8 9 9 Average Carried 8 | 4 7 7 8 9 Final Capacity 20 | 8 8 8 20 20 Final Carried 9 | 7 8 8 9 9 Class Distribution -------------------- 100% | Mutant Dominant Class ---------------- Mutant | -10/Materials Mutant | -10/Mines Mutant | -10/Exiles Mutant | -9/Mines Resources | -11 -10 -10 -10 -9 ----------- Run | Yrd Mat Min Exi Min Matter Collected 429 | 279 96 52 2 . Remotely . | . . . . . Salvage Created 419 | 118 177 89 35 . Parts 35 | 4 11 18 2 . Haulers Intercepted . | . . . . . Recyclers Shooed 1 | . 1 . . . Parts Field Recycled . | . . . . . Retrieved Matter . | . . . . . Parts Self-Destructed . | . . . . . Prevented . | . . . . . Parts Restored . | . . . . . Kills | -11 -10 -10 -10 -9 ------- Run | Yrd Mat Min Exi Min Combat Hostiles Destroyed 12 | . 6 6 . . Guns 12 | . 6 6 . . Classes Destroyed 4 | 2 2 . . . Tunneler 1 | 1 . . . . Recycler 1 | 1 . . . . Swarmer 9 | . 3 6 . . Grunt 3 | . 3 . . . Best Kill Streak 4 | 2 4 3 . . Combat Bots Only 4 | . 4 3 . . Max Kills in Single Turn 1 | 1 1 1 . . Gunslinging . | . . . . . Exploded . | . . . . . Melee . | . . . . . Uniques/NPCs Destroyed . | . . . . . Combat | -11 -10 -10 -10 -9 -------- Run | Yrd Mat Min Exi Min Hostile Shots Fired 91 | . 43 38 . 10 Missed 18 | . 11 7 . . Hits 73 | . 32 31 . 10 Projectile 73 | . 32 31 . 10 AOE 10 | . . . . 10 Critical Strikes 1 | . 1 . . . Damage Taken 994 | . 358 256 . 380 Core 259 | . 22 42 . 195 Absorbed by Shields . | . . . . . Core Remaining (%) 100 | 100 . . . . Volleys Fired 65 | 7 33 18 7 . Largest 2 | 2 2 2 2 . Hottest 40 | 40 40 40 40 . Shots Fired 116 | 9 66 27 14 . Gun 116 | 9 66 27 14 . Cannon . | . . . . . Launcher . | . . . . . Special . | . . . . . Kinetic 116 | 9 66 27 14 . Thermal . | . . . . . Explosive . | . . . . . Electromagnetic . | . . . . . Robot Hit Streak 4 | 2 4 3 2 . Robot Miss Streak 5 | 3 5 4 1 . Penetration Max . | . . . . . Secondary Targets 4 | . 2 2 . . Max Gunslinging Chain 1 | . 1 1 . . Shots Hit Robots 61 | 4 37 12 8 . Core Hits 26 | 3 15 7 1 . Critical Kills . | . . . . . Critical Parts Destroyed . | . . . . . Critical Strikes . | . . . . . Melee Attacks . | . . . . . Impact . | . . . . . Slashing . | . . . . . Piercing . | . . . . . Sneak Attacks . | . . . . . Combat Hostiles . | . . . . . Follow-up Attacks . | . . . . . Damage Inflicted 495 | 43 300 92 60 . Guns 495 | 43 300 92 60 . Cannons . | . . . . . Explosions . | . . . . . Melee . | . . . . . Ramming . | . . . . . Kinetic 495 | 43 300 92 60 . Thermal . | . . . . . Explosive . | . . . . . Electromagnetic . | . . . . . Impact . | . . . . . Slashing . | . . . . . Piercing . | . . . . . Highest Corruption . | . . . . . Average Corruption . | . . . . . Corruption Purged . | . . . . . Corruption Blocked . | . . . . . Overload Shots . | . . . . . Overflow Damage . | . . . . . Projectiles . | . . . . . Explosions . | . . . . . Melee . | . . . . . Knockbacks . | . . . . . Impact . | . . . . . Kinetic . | . . . . . Secondary . | . . . . . Self-Inflicted Damage . | . . . . . Shots . | . . . . . Rammed . | . . . . . Targets Rammed . | . . . . . Kicked . | . . . . . Crushed . | . . . . . Highest Temperature 24 | . 24 . . . Average Temperature 11 | . 11 . . . Received Heat Transfer 138 | . 138 . . . Siege Activations . | . . . . . Martial Activations . | . . . . . Shielding Activations . | . . . . . Robots Disrupted . | . . . . . Combat Hostiles . | . . . . . Robots Corrupted . | . . . . . Combat Hostiles . | . . . . . Parts Fried . | . . . . . Impact Corruptions . | . . . . . Robots Melted . | . . . . . Combat Hostiles . | . . . . . Parts Melted . | . . . . . Heat Transferred . | . . . . . Parts Sabotaged . | . . . . . Parts Stolen . | . . . . . Parts Stripped . | . . . . . Power Chain Reactions . | . . . . . Alert | -11 -10 -10 -10 -9 ------- Run | Yrd Mat Min Exi Min Maximum Alert Level . | . . . . . Low Security (%) 100 | 100 100 100 . 100 Level 1 . | . . . . . Level 2 . | . . . . . Level 3 . | . . . . . Level 4 . | . . . . . Level 5 . | . . . . . High Security . | . . . . . Max Security . | . . . . . Peak Influence 112 | 5 110 112 . . Initial 16 | . . 16 . . Average 30 | 1 35 44 . . Influence Increases 335 | 10 164 156 5 . Destroy 0b10 Robot/C 240 | . 120 120 . . Destroy 0b10 Robot/NC 15 | 10 . . 5 . Destroy Leader 50 | . 30 20 . . Allied During Kill 16 | . . 16 . . Successful Hack 14 | . 14 . . . Influence Decreases 335 | 10 122 96 107 . Entered New Map 128 | . . 26 102 . Time Decay 187 | 10 122 50 5 . Lost Part 20 | . . 20 . . Squads Dispatched 2 | . 2 . . . Investigation 1 | . 1 . . . Extermination . | . . . . . Reinforcement 1 | . 1 . . . Assault . | . . . . . Garrison . | . . . . . Intercept . | . . . . . Searches Triggered . | . . . . . Construction Impeded . | . . . . . Haulers Reinforced . | . . . . . Active Scanning Responses . | . . . . . Cargo Convoy Interrupts . | . . . . . Stealth | -11 -10 -10 -10 -9 --------- Run | Yrd Mat Min Exi Min Distress Signals 1 | . 1 . . . Communications Jammed . | . . . . . Distress Signals . | . . . . . Times Spotted 21 | . 13 6 . 2 Peak Tracking Total 4 | . 4 3 . 2 Tactical Retreats . | . . . . . Traps | -11 -10 -10 -10 -9 ------- Run | Yrd Mat Min Exi Min Traps Triggered . | . . . . . Indirectly . | . . . . . Trap Hack Attempts . | . . . . . Triggered . | . . . . . Disarmed . | . . . . . Reprogrammed . | . . . . . Reused . | . . . . . Traps Extracted . | . . . . . Installed . | . . . . . Triggered . | . . . . . Machines | -11 -10 -10 -10 -9 ---------- Run | Yrd Mat Min Exi Min Machines Disabled . | . . . . . Max in Single Turn . | . . . . . Machines Repaired . | . . . . . Machines Dismantled . | . . . . . Machines Sabotaged . | . . . . . Overloaded Fab Kills . | . . . . . Hacking | -11 -10 -10 -10 -9 --------- Run | Yrd Mat Min Exi Min Machines Accessed 8 | . 4 . 4 . Terminals 2 | . 2 . . . Fabricators . | . . . . . Repair Stations . | . . . . . Recycling Units 2 | . 2 . . . Scanalyzers . | . . . . . Garrison Access . | . . . . . Total Hacks 60 | . 11 . 49 . Successful 57 | . 8 . 49 . Failed 3 | . 3 . . . Catastrophic 1 | . 1 . . . Database Lockouts . | . . . . . Manual . | . . . . . Terminals 8 | . 8 . . . Fabricators . | . . . . . Repair Stations . | . . . . . Recycling Units 3 | . 3 . . . Scanalyzers . | . . . . . Garrison Access . | . . . . . Terminal Hacks 54 | . 5 . 49 . Record 51 | . 2 . 49 . Branch Access Points 1 | . 1 . . . Emergency Access Points 1 | . 1 . . . Zone Layout 1 | . 1 . . . Fabricator Hacks . | . . . . . Repair Station Hacks . | . . . . . Recycling Unit Hacks 3 | . 3 . . . Report Inventory 2 | . 2 . . . Retrieve Components 1 | . 1 . . . Scanalyzer . | . . . . . Garrison Access Hacks . | . . . . . Unauthorized Hacks . | . . . . . Terminals . | . . . . . Fabricators . | . . . . . Repair Stations . | . . . . . Recycling Units . | . . . . . Scanalyzers . | . . . . . Garrison Access . | . . . . . Data Cores Recovered . | . . . . . Used . | . . . . . Hacking Detections 3 | . 3 . . . Full Trace Events 1 | . 1 . . . Feedback Events . | . . . . . Feedback Blocked . | . . . . . Robot Schematics Acquired . | . . . . . Robots Built . | . . . . . Authchips . | . . . . . Time . | . . . . . Total Robot Build Rating . | . . . . . Part Schematics Acquired . | . . . . . Parts Built . | . . . . . Authchips . | . . . . . Time . | . . . . . Total Part Build Rating . | . . . . . Part Studies Acquired . | . . . . . Parts Repaired . | . . . . . Time . | . . . . . Parts Recycled . | . . . . . Recycled Matter . | . . . . . Retrieved Matter . | . . . . . Retrieved Components 7 | . 7 . . . Parts Scanalyzed . | . . . . . Part Schematics Acquired . | . . . . . Parts Damaged . | . . . . . Bothacking | -11 -10 -10 -10 -9 ------------ Run | Yrd Mat Min Exi Min Used RIF Installer . | . . . . . Robots Hacked . | . . . . . Non-combat . | . . . . . Combat . | . . . . . Robot Hacks Applied . | . . . . . Relay Couplers Released . | . . . . . Fabnet Peak Effective % . | . . . . . Robots Rewired . | . . . . . Allies Hacked . | . . . . . Hacks Repelled . | . . . . . Allies | -11 -10 -10 -10 -9 -------- Run | Yrd Mat Min Exi Min Total Allies 2 | . . 2 . . Largest Group 2 | . . 2 2 . Highest-Rated Group 45 | . . 45 45 . Highest-Rated Ally 31 | . . 31 31 . Total Orders . | . . . . . Ally Attacks . | . . . . . Total Damage . | . . . . . Kills . | . . . . . Allies Corrupted . | . . . . . Allies Melted . | . . . . . Intel | -11 -10 -10 -10 -9 ------- Run | Yrd Mat Min Exi Min Active Infowar (turns) 555 | 35 482 38 . . Terrain 555 | 35 482 38 . . Robot Analysis Total . | . . . . . Derelict Logs Recovered . | . . . . . Drone Launches . | . . . . . Drone Recoveries . | . . . . . Exploration | -11 -10 -10 -10 -9 ------------- Run | Yrd Mat Min Exi Min Turns Passed 2032 | 113 482 114 1295 28 Spaces Moved 1082 | 61 313 52 646 10 Core 10 | 9 . . . 1 Treads . | . . . . . Legs 1072 | 52 313 52 646 9 Wheels . | . . . . . Hover . | . . . . . Flight . | . . . . . Fastest Speed 50 | 50 120 120 120 260 Average Speed 167 | 109 120 120 197 332 Slowest Speed 700 | 120 120 120 260 700 Overloaded Moves . | . . . . . Propulsion Burnouts . | . . . . . Robots Hopped . | . . . . . Potential Cave-ins . | . . . . . Cave-ins Triggered . | . . . . . Exploration Rate (%) 34 | 3 57 14 92 6 Regions Visited 4 Branch Regions 3 Pre-discovered Areas 1 | . . . 1 . Known Exits Taken 1 | . 1 . . . Unknown Exits Taken 3 | 1 . 1 1 . Scrap Searched . | . . . . . Spaces Dug . | . . . . . Terrain Destroyed . | . . . . . Melee . | . . . . . Projectile . | . . . . . AOE . | . . . . . Terrain Rammed . | . . . . . Walls Destroyed . | . . . . . Machines Disabled . | . . . . . Actions | -11 -10 -10 -10 -9 --------- Run | Yrd Mat Min Exi Min Total 1216 | 98 368 82 658 10 Wait 30 | 13 11 6 . . Move 1078 | 60 312 51 645 10 Hop . | . . . . . Pick Up 20 | 11 4 3 2 . Fast Attach 3 | 3 . . . . Attach 6 | 4 . 2 . . Detach . | . . . . . Swap 5 | . 3 1 1 . Drop 8 | . 5 1 2 . Fire 65 | 7 33 18 7 . Melee . | . . . . . Ram . | . . . . . Kick . | . . . . . Crush . | . . . . . Escape Stasis . | . . . . . Rewire 1 | . . . 1 . Trap . | . . . . . Miscellaneous . | . . . . . Route ------- -11/Scrapyard -10/Materials (discovered 3 exits: [*Mat] / *Min / [*Sub]) -10/Mines (discovered 2 exits: [*Mat] / *Exi) -10/Exiles (discovered 2 exits: [*Min x2]) -9/Mines History --------- Turn | Location | Event 10 | -11/Scrapyard | Discovered new exit (range 16) 114 | -11/Scrapyard | Entered Materials 146 | -10/Materials | Discovered new exit (range 9) 309 | -10/Materials | Discovered new exit (range 10) 318 | -10/Materials | Build established: Mutant 469 | -10/Materials | Discovered new exit (range 10) 531 | -10/Materials | Identified exit to Mines 596 | -10/Materials | Entered Mines 622 | -10/Mines | Discovered new exit (range 7) 671 | -10/Mines | Discovered new exit (range 10) 710 | -10/Mines | Entered Exiles 710 | -10/Exiles | Found Exiles lab destroyed 710 | -10/Exiles | Accompanied by 2 allies 740 | -10/Exiles | Led the pair of lost Derelicts to a safe place 830 | -10/Exiles | Learned location of Zion (-7) 1463 | -10/Exiles | Discovered new exit (range 14) 1973 | -10/Exiles | Discovered new exit (range 14) 2005 | -10/Exiles | Entered Mines 2006 | -9/Mines | Assembled infested the area 2011 | -9/Mines | Assisted by a Guerilla fighting off Assembled 2028 | -9/Mines | Core integrity fell below 50% 2032 | -9/Mines | Core integrity fell below 20% 2033 | -9/Mines | Destroyed by D-53 Grenadier with Mini Grenade Launcher Last Messages --------------- 02009_ T-07 Excavator is excavating. 02011_ A derelict emerges from the shadows: "You need to get out of here! I've been tracking a group of Assembled to figure out where they're coming from, and they're closing on this area, come on!" 02014_ T-07 Excavator is excavating. 02023_ C-45 Heavy ARC bursts open, deploying its payload. 02023_ D-53 Grenadier unfolds itself. 02023_ Aluminum Leg destroyed. 02023_ T-07 Excavator is excavating. 02024_ Lgt. Assault Rifle destroyed. 02025_ T-07 Excavator destroyed. 02026_ The unstable cave ceiling collapses. 02026_ Ion Engine destroyed. 02027_ T-07 Excavator is excavating. 02028_ U-05 Engineer builds a Wall. 02028_ Lgt. Assault Rifle destroyed. 02028_ Aluminum Leg destroyed. 02031_ The unstable cave ceiling collapses. 02031_ T-07 Excavator is excavating. 02032_ U-05 Engineer lays Concrete. Map ----- +----------------------------------------------------+ | | | | | | | | | | | | | | | | | | | | | | | | | ????????????????????????????????????????????? | | ????????????????????????????????????????????? | | ????????????????????????????????????????????? | | ????????????????????????????????????????????? | | ????????????????????????????????????????????? | | ????????????????????????????????????????????? | | ????????????????????????????????????????????? | | ????????????????????????????????????????????? | | ?????????????####???????????????????????????? | | ????????????## ##?##??????????????????????? | | ????????????# t# ############ ?????????? | | ?????????????# ! ????????? | | ???????######## t ????????????? | | ?????# u% @ #???????????????????? | | ????????????## d #???????????????????? | | ?????????????# d #???????????????????? | | ?????????????# ##???????????????????? | | ????????????# #???????????????????? | | ????????????## #??????????????????? | | ?????????????# #??????????????????? | | ?????????????## ## ##??????????????????? | | ??????????????###########???????????????????? | | ????????????????????????????????????????????? | | ????????????????????????????????????????????? | | ????????????????????????????????????????????? | | ????????????????????????????????????????????? | | ????????????????????????????????????????????? | | ????????????????????????????????????????????? | | ????????????????????????????????????????????? | | ????????????????????????????????????????????? | | ????????????????????????????????????????????? | | ????????????????????????????????????????????? | | ????????????????????????????????????????????? | | ????????????????????????????????????????????? | | ????????????????????????????????????????????? | | ????????????????????????????????????????????? | | ????????????????????????????????????????????? | | ????????????????????????????????????????????? | +----------------------------------------------------+ Best States ------------- Heat Dissipation 25 Energy Generation 10 Energy Capacity 250 Matter Stores 300 Matter Capacity 300 Sight Range 16 Terrain Scan Range 16 Terrain Scan Density 10 Evasion (%) 55 Salvage Targeting 1 Item Schematics ----------------- None Robot Schematics ------------------ None Fabricated ------------ Nothing Repaired ---------- Nothing Studied --------- None Alien Tech Used ----------------- None Achievements -------------- None Challenges ------------ None Game ------ Seed ZeronetZipSuit Manual? 0 Play Time 00:26:02 Cumulative 42.7 hours Start 2026.03.22 @ 13:44:20 End 2026.03.22 @ 14:11:45 Sessions 1 Manual Loads 0 Difficulty Rogue Special Mode None Game No. 52 Rogue 52 Adventurer 0 Explorer 0 Win Type - Total 0 Types 0/0/0/0/0/0/0/0/0/0 Lore% 23 Gallery% 18 Achievement% 11 Wizard Run 0 Options --------- Layout 0 ASCII 0 Keyboard 0 Movement Mouse Keybinds 0 Fullscreen 1 Font 18/SmallcapsGlow Map View 76x50 Zoom Use 0% Tactical HUD 1 Map Filters NONE Filters LOW_CONTRAST(13,24,33) Steam 1 RUN: 564950bc-ee9f-4dc0-b337-92af40e34dae